[Event "European Corporate Championship 2022"]
[Site "Rotterdam"]
[Date "2022.06.18"]
[Round "3.20"]
[White "Pedersen, Christopher R.N.H."]
[Black "Goulis, Panagiotis"]
[Result "0-1"]
[ECO "B55"]
[WhiteElo "2118"]
[BlackElo "1240"]
[Annotator "TA"]
[PlyCount "102"]
[EventDate "2022.06.18"]
[EventType "team-tourn"]
[EventCountry "NED"]
[SourceTitle "playchess.com"]
[Source "ChessBase"]
[SourceQuality "1"]
[TimeControl "900+5"]

{[%evp 9,102,0,35,3,31,-7,60,33,34,0,56,-18,27,28,57,18,33,-20,-10,-8,-6,-62,-60,-62,-26,-79,-36,-75,-50,-121,-4,-61,-61,-114,-78,-111,-124,-300,-206,-547,-537,-518,-504,-496,-371,-393,-383,-549,-172,-173,-176,-169,-169,-161,-125,-230,-235,-500,-484,-777,-714,-1001,-900,-3363,-2451,-5790,-3044,-2133,-1955,-29972,-2029,-29980,-1641,-1206,-1009,-980,-960,-29982,-953,-29983,-29984,-29986,-29984,-29984,-29985,-29985,-29985,-29986,-29987,-29988,-29986,-29986,0,-29985,-29986]} 1. e4 {[%emt 0:00:02]} c5 {[%emt 0:00:01]} 2. Nf3 {[%emt 0:00:01]} d6 {[%emt 0:00:03]} 3. d4 {[%emt 0:00:01]} cxd4 {[%emt 0:00:01]} 4. Nxd4 {[%emt 0:00:02]} Nf6 {[%emt 0:00:01]} 5. Bd3 {[%emt 0:00:03]} Nbd7 {[%emt 0:01:25]} 6. Be3 {[%emt 0:00:04] B55: Sicilian: 2...d6 3 d4 cxd4 4 Nxd4 Nf6 5 f3.} a6 {[%emt 0:00:16]} 7. h3 {[%emt 0:00:03] [#]} b5 $146 {[%emt 0:00:03]} (7... d5 $11) ({Predecessor:} 7... Nc5 8. Nd2 Nxd3+ 9. cxd3 g6 10. O-O Bg7 11. Rc1 Bd7 12. b3 O-O 13. N2f3 Qa5 {0-1 (34) Jakobi,W (1568)-Stidham,D ICCF email 2019}) 8. O-O {[%emt 0:00:07] White is slightly better.} Bb7 {[%emt 0:00:02]} 9. Nd2 {[%emt 0:00:08]} (9. c4 $5 {[%cal Rc4b5]}) 9... Nc5 {[%emt 0:00:42]} (9... e5 $11 10. N4b3 d5) 10. f3 {[%emt 0:00:50]} (10. b4 $14 Nxd3 11. cxd3) 10... Nxd3 {[%emt 0:00:43]} (10... e5 $5 {[%cal Re5d4]} 11. N4b3 Nxd3 12. cxd3 Be7 $11) 11. cxd3 {[%emt 0:00:03]} g6 {[%emt 0:00:32]} 12. Ne2 {[%emt 0:00:11]} Bg7 {[%emt 0:00:03]} 13. Bd4 {[%emt 0:00:07]} (13. a4 $14) 13... e5 {[%emt 0:00:18]} 14. Be3 {[%emt 0:00:13]} O-O {[%emt 0:00:05]} 15. Bg5 {[%emt 0:00:29]} (15. d4 $11) 15... Qb6+ {[%emt 0:00:40]} 16. Kh1 {[%emt 0:14:01]} Rac8 {[%emt 0:00:18] Black is more active.} 17. Rc1 {[%emt 0:00:00]} (17. b4 $11) 17... Nd7 {[%emt 0:00:38][%cal Bf6d7,Bd7c5,Bc5d3,Bd3f2][%mdl 32]} 18. Rc3 {[%emt 0:00:00]} Nc5 {[%emt 0:00:44]} 19. b3 {[%emt 0:00:00]} (19. Be3 $15 a5 20. a4) 19... b4 {[%emt 0:00:04]} (19... Ne6 $1 $17 20. Bh4 Qa5) 20. Rc1 {[%emt 0:00:00]} ({White should try} 20. Nc4 $11 Qc7 21. Rc1) 20... Nxd3 $15 {[%emt 0:00:06]} 21. Nc4 {[%emt 0:00:00]} (21. Rxc8 $1 $15 Rxc8 22. Kh2) 21... Nf2+ {[%emt 0:00:09]} 22. Rxf2 {[%emt 0:00:00]} Qxf2 {[%emt 0:00:03]} 23. Nxd6 $2 {[%emt 0:00:00]} (23. Be3 $17 Qh4 24. Qxd6) 23... Rxc1 {[%emt 0:10:03]} 24. Qxc1 {[%emt 0:00:00]} (24. Nxc1 {was the crucial defense.} Bc6 25. Nd3) 24... Qxe2 $19 {[%emt 0:00:00]} 25. Nxb7 {[%emt 0:00:00]} Qxa2 {[%emt 0:00:00]} 26. Qc4 {[%emt 0:00:00]} Qa1+ {[%emt 0:00:00]} 27. Kh2 {[%emt 0:00:00]} Qd4 {[%emt 0:00:00] Prevents Nd8.} 28. Qxa6 {[%emt 0:00:00]} (28. Qc6 {was necessary.}) 28... Rc8 $2 {[%emt 0:00:00]} (28... h6 29. Be7 Rc8) 29. Nd6 {[%emt 0:00:00]} Rb8 {[%emt 0:00:00]} 30. Nc4 {[%emt 0:00:00]} h6 {[%emt 0:00:00]} 31. Be7 {[%emt 0:00:00]} Qc3 {[%emt 0:00:00]} 32. Qd6 {[%emt 0:00:00]} (32. Bd6 $17 Rd8 33. Qb6) 32... Ra8 $1 {[%emt 0:00:10]} 33. Qc6 $2 {[%emt 0:00:00] [#]} (33. Qxb4 Qc2 34. Na5) 33... Ra7 $1 {[%emt 0:00:28]} 34. Qe8+ {[%emt 0:00:00]} (34. Bd6 $142 Qxb3 35. Qb5) 34... Kh7 {[%emt 0:00:03]} 35. Qb8 {[%emt 0:00:00]} Rxe7 {[%emt 0:00:03]} 36. Nd6 {[%emt 0:00:00]} Qxb3 {[%emt 0:00:06] Hoping for ...Rd7.} 37. Qb5 {[%emt 0:00:00]} Qe6 {[%emt 0:00:11]} 38. Nc4 {[%emt 0:00:00]} Rd7 {[%emt 0:00:06] Strongly threatening ...Rd4.} 39. Qxb4 {[%emt 0:00:00]} Rc7 {[%emt 0:00:04]} (39... Rd4 $142 40. Qc5 Rxc4 41. Qb5 Bf6 42. Qd5 Qxd5 43. exd5 Bh4 44. g3 Rc2+ 45. Kh1 Bxg3 46. d6 f5 47. d7 Bh4 48. d8=B Bxd8 49. h4 Bxh4 50. Kg1 e4 51. fxe4 f4 52. e5 f3 53. Kh1 Bg3 54. Kg1 Rc1#) 40. Qd6 {[%emt 0:00:00]} Qxd6 {[%emt 0:00:02]} (40... Qxc4 $142 41. Qa3 Qf1 42. Qb3 h5 43. h4 Qf2 44. f4 Bh6 45. Kh3 Bxf4 46. g3 {[#]} Rb7 $3 {[%mdl 512]} 47. Qxf7+ Rxf7 48. gxf4 exf4 49. e5 Qg3#) 41. Nxd6 {[%emt 0:00:00]} Rd7 {[%emt 0:00:03]} 42. Nc4 {[%emt 0:00:00]} Rd4 {[%emt 0:00:09]} 43. Nd6 {[%emt 0:00:00]} Kg8 {[%emt 0:00:08]} (43... Rxd6 $142 44. h4 Rd2 45. Kg1 Ra2 46. h5 gxh5 47. Kh2 Bf6 48. Kg3 Bg5 49. f4 Bxf4+ 50. Kf3 Kg6 51. g3 Bc1 52. g4 hxg4+ 53. Kg3 h5 54. Kh4 Rh2+ 55. Kg3 Bf4#) 44. Kg3 {[%emt 0:00:00]} Rxd6 {[%emt 0:00:01]} 45. f4 {[%emt 0:00:00]} exf4+ {[%emt 0:00:01]} 46. Kxf4 {[%emt 0:00:00]} g5+ {[%emt 0:00:04]} 47. Ke3 {[%emt 0:00:00]} Re6 {[%emt 0:00:03]} 48. Kd3 {[%emt 0:00:00]} h5 {[%emt 0:00:06]} 49. Ke3 {[%emt 0:00:00]} Bh6 {[%emt 0:00:04]} 50. Kf3 {[%emt 0:00:00]} Bg7 {[%emt 0:00:08]} 51. Ke3 $1 {[%emt 0:00:01]} f5 {[%emt 0:00:03] Weighted Error Value: White=1.31/Black=0.82} 0-1

[Event "European Corporate Championship 2022"]
[Site "Rotterdam"]
[Date "2022.06.18"]
[Round "4.1"]
[White "Nijboer, Friso"]
[Black "Warmerdam, Max"]
[Result "1-0"]
[ECO "C88"]
[WhiteElo "2464"]
[BlackElo "2614"]
[Annotator "TA"]
[PlyCount "62"]
[EventDate "2022.06.18"]
[EventType "team-tourn"]
[EventCountry "NED"]
[SourceTitle "playchess.com"]
[Source "ChessBase"]
[SourceQuality "1"]
[TimeControl "900+5"]

{[%evp 17,62,0,29,30,47,34,185,45,56,56,56,50,55,51,76,67,83,79,82,73,120,88,117,93,101,0,104,108,187,77,141,76,69,60,96,64,87,66,112,109,111,93,111,107,155,148,149]} 1. e4 {[%emt 0:00:01]} e5 {[%emt 0:00:02]} 2. Nf3 {[%emt 0:00:02]} Nc6 {[%emt 0:00:01]} 3. Bb5 {[%emt 0:00:00][%cal Bf1b5,Bb5a4,Ba4b3][%mdl 32]} a6 {[%emt 0:00:01]} 4. Ba4 {[%emt 0:00:01]} Nf6 {[%emt 0:00:01]} 5. O-O {[%emt 0:00:03]} Be7 {[%emt 0:00:06]} 6. Re1 {[%emt 0:00:23]} b5 {[%emt 0:00:07]} 7. Bb3 {[%emt 0:00:01]} O-O {[%emt 0:00:04]} 8. a4 {[%emt 0:00:07]} Bb7 {[%emt 0:01:05]} 9. Nc3 {[%emt 0:00:29]} b4 {[%emt 0:00:41]} 10. Nd5 {[%emt 0:00:04] C88: Closed Ruy Lopez: Anti-Marshall Systems.} Re8 {[%emt 0:01:32] [#]} 11. a5 $146 {[%emt 0:00:48]} ({Predecessor:} 11. d3 h6 12. a5 Bc5 13. Be3 Bxe3 14. Rxe3 Rb8 15. h3 d6 16. Nxf6+ Qxf6 17. Nh2 Nd4 18. Ba4 Bc6 19. Ng4 {0-1 (73) Zarges,S (2019)-Richter,C (2201) NRW 2001}) 11... Bf8 $2 {[%emt 0:00:58]} ({Better is} 11... Nxd5 $14 12. Bxd5 Bf6) 12. d3 {[%emt 0:00:11]} (12. Ng5 $1 $18) 12... h6 $14 {[%emt 0:00:05]} 13. Bd2 {[%emt 0:00:56]} Rb8 {[%emt 0:00:13]} 14. c3 {[%emt 0:02:09]} bxc3 {[%emt 0:01:03]} 15. bxc3 {[%emt 0:00:01]} d6 {[%emt 0:00:27]} 16. Qc2 {[%emt 0:00:35]} Nd7 {[%emt 0:01:04]} 17. Qa2 {[%emt 0:00:41]} Nc5 {[%emt 0:02:59]} 18. Bc4 {[%emt 0:00:01]} Ne6 {[%emt 0:02:34]} ({Black should try} 18... Na7) 19. Rab1 {[%emt 0:00:23]} Bc8 {[%emt 0:00:37]} 20. Qa4 {[%emt 0:00:27]} Bd7 {[%emt 0:00:06]} 21. Qa2 {[%emt 0:00:54] White is much more active.} ({Avoid the trap} 21. Bxa6 $2 Nc5 22. Qc2 (22. Rxb8 $2 Nxb8 23. Qc2 Ncxa6 $19) 22... Nxa6 $19) (21. Rxb8 $16 Qxb8 22. Qa2 (22. Bxa6 $2 Nc5 $19)) 21... Rxb1 {[%emt 0:00:22]} (21... Bc8 $1 $11 {remains equal.}) 22. Rxb1 $16 {[%emt 0:00:01]} Qa8 {[%emt 0:00:03]} (22... Qc8 $16) 23. Nh4 {[%emt 0:00:46]} (23. Bxh6 $1 $18 {Hoping for Bc1.} Rb8 24. Rxb8 Nxb8 25. Nxc7 $1) 23... Ne7 {[%emt 0:00:45] [#]} (23... Rb8 $142) 24. Nxe7+ {[%emt 0:01:17]} (24. Nb4 $142 $1) 24... Bxe7 {[%emt 0:00:05]} 25. Nf5 {[%emt 0:00:01][%cal Bh4f5,Bf5g3,Bg3e2][%mdl 32]} Bf8 {[%emt 0:00:55]} 26. Qb3 {[%emt 0:00:25]} Bc6 {[%emt 0:00:11]} 27. Be3 {[%emt 0:00:01]} Kh7 {[%emt 0:00:10]} (27... Bb5 $14) 28. Ng3 {[%emt 0:01:33]} g6 {[%emt 0:00:15]} 29. f3 {[%emt 0:00:26]} Bg7 {[%emt 0:00:08]} 30. Ne2 {[%emt 0:00:01]} Bf6 {[%emt 0:00:05]} (30... Rd8 $142) 31. d4 {[%emt 0:00:03] Threatens to win with d5.} Qa7 {[%emt 0:00:13] Weighted Error Value: White=0.33/Black=0.38} 1-0

[Event "European Corporate Championship 2022"]
[Site "Rotterdam"]
[Date "2022.06.18"]
[Round "4.2"]
[White "Oudshoorn, Arres"]
[Black "De Vreugt, Dennis"]
[Result "0-1"]
[ECO "B84"]
[WhiteElo "2137"]
[BlackElo "2393"]
[Annotator "TA"]
[PlyCount "75"]
[EventDate "2022.06.18"]
[EventType "team-tourn"]
[EventCountry "NED"]
[SourceTitle "playchess.com"]
[Source "ChessBase"]
[SourceQuality "1"]
[TimeControl "900+5"]

{[%evp 19,75,35,72,31,68,18,65,18,45,58,47,62,114,54,48,55,42,36,57,55,56,59,72,58,61,52,114,64,48,62,147,143,295,301,331,306,306,303,306,295,454,443,366,320,329,347,712,452,668,637,877,889,1199,972,29990,29991,29993,29990]} 1. e4 {[%emt 0:00:03]} c5 {[%emt 0:00:01]} 2. Nf3 {[%emt 0:00:02]} d6 {[%emt 0:00:01]} 3. d4 {[%emt 0:00:01]} cxd4 {[%emt 0:00:02]} 4. Nxd4 {[%emt 0:00:01]} Nf6 {[%emt 0:00:01]} 5. Nc3 {[%emt 0:00:01]} a6 {[%emt 0:00:01]} 6. Be2 {[%emt 0:00:01]} e6 {[%emt 0:00:02]} 7. O-O {[%emt 0:00:09]} Qc7 {[%emt 0:00:20]} 8. f4 {[%emt 0:00:41]} Nbd7 {[%emt 0:00:06]} 9. Bf3 {[%emt 0:00:58]} Be7 {[%emt 0:00:21]} 10. a4 {[%emt 0:00:20]} O-O {[%emt 0:00:18]} 11. Kh1 {[%emt 0:00:18] B84: Sicilian Scheveningen: 6 Be2 a6, lines without early Be3.} Re8 {[%emt 0:00:21]} 12. Be3 {[%emt 0:00:27]} (12. g4 $14 Nf8 13. g5) 12... Bf8 {[%emt 0:00:16] [#]} (12... Nb6 $11) 13. Qd2 $146 {[%emt 0:00:13]} (13. g4 $14 h6 14. g5 hxg5 15. fxg5) ({Predecessor:} 13. Qe1 e5 14. Nde2 exf4 15. Nxf4 Ne5 16. Bd4 Bd7 17. Qg3 Bc6 18. Nfd5 Nxd5 19. exd5 {0-1 (31) Maucci,M (1859)-Martinez de Negri,A (2165) Vicente Lopez 2016}) 13... Nb6 {[%emt 0:01:05]} 14. b3 {[%emt 0:00:34] Prevents Nc4.} e5 {[%emt 0:00:23]} 15. Nde2 {[%emt 0:00:03]} exf4 {[%emt 0:00:39] [#]} (15... Nbd7 $14) 16. Nxf4 {[%emt 0:00:07]} ({White should play} 16. Bd4 $1 $16) 16... Be6 $14 {[%emt 0:00:04]} 17. a5 $36 {[%emt 0:05:09][%mdl 2048] White fights for an advantage.} Nbd7 {[%emt 0:00:02]} 18. Na4 {[%emt 0:00:01]} Ne5 {[%emt 0:00:11]} 19. Nb6 {[%emt 0:00:03]} Rab8 {[%emt 0:01:54]} 20. c4 {[%emt 0:00:04]} g6 {[%emt 0:00:14]} 21. Rac1 {[%emt 0:00:01]} Bg7 {[%emt 0:00:05]} 22. Rcd1 {[%emt 0:00:39]} Nc6 {[%emt 0:02:04]} (22... Rbd8 $14) 23. Qxd6 {[%emt 0:01:59]} (23. Bf2 $16) 23... Qxd6 {[%emt 0:00:02]} 24. Rxd6 {[%emt 0:00:01]} Bf8 {[%emt 0:00:01]} (24... Ng4 $14 25. Bg1 Nge5) 25. Rdd1 $16 {[%emt 0:00:10]} Nxa5 $2 {[%emt 0:00:18] This move loses the game for Black.} (25... Ng4 $16 26. Bd2 Nge5) 26. Bd4 $18 {[%emt 0:00:57]} Bg7 {[%emt 0:01:04]} 27. Nxe6 {[%emt 0:00:02]} Rxe6 {[%emt 0:00:26]} 28. e5 {[%emt 0:00:01]} Ne8 {[%emt 0:00:59]} 29. Bd5 {[%emt 0:00:12][%cal Bf3d5,Bd5f7,Bf7g6][%mdl 32]} Re7 {[%emt 0:00:20]} (29... Nc7 {was called for.} 30. Nd7 Rbe8 31. Bxe6 Nxe6) 30. Bc5 {[%emt 0:00:15] A strong pair of Bishops.} Rxe5 {[%emt 0:00:05]} 31. Bxf7+ {[%emt 0:00:12]} Kh8 {[%emt 0:00:01]} 32. Nd7 {[%emt 0:00:01][%csl LRb8,LRe5]} Nxb3 $2 {[%emt 0:00:14]} (32... Rxc5 33. Nxc5 Nf6) 33. Nxb8 {[%emt 0:00:21]} Rxc5 {[%emt 0:00:23]} (33... Nxc5 $142 34. Rd8 Bf6) 34. Rd8 {[%emt 0:00:05]} h5 {[%emt 0:00:01]} 35. Bxg6 {[%emt 0:00:02]} Bc3 {[%emt 0:00:21]} 36. Bxe8 {[%emt 0:00:28] [#] Threatens to win with Ba4+.} Kg7 {[%emt 0:00:01]} 37. Rf7+ {[%emt 0:00:10]} Kh6 {[%emt 0:00:02]} 38. h4 {[%emt 0:00:15][%mdl 32768] Weighted Error Value: White=0.23 (precise) /Black=0.68. Loss on time!?} 0-1

[Event "European Corporate Championship 2022"]
[Site "Rotterdam"]
[Date "2022.06.18"]
[Round "4.3"]
[White "Jonkman, Harmen"]
[Black "Lie, Michael"]
[Result "1-0"]
[ECO "B27"]
[WhiteElo "2384"]
[BlackElo "1798"]
[Annotator "TA"]
[PlyCount "97"]
[EventDate "2022.06.18"]
[EventType "team-tourn"]
[EventCountry "NED"]
[SourceTitle "playchess.com"]
[Source "ChessBase"]
[SourceQuality "1"]
[TimeControl "900+5"]

{[%evp 12,97,49,26,25,11,41,23,31,7,72,68,67,74,85,43,75,78,89,56,60,25,84,30,40,35,49,42,70,101,112,97,100,102,125,123,173,170,203,212,205,196,319,300,314,309,323,300,306,301,284,285,242,173,144,157,144,151,220,117,202,91,182,206,335,285,301,311,571,603,595,584,861,850,826,820,918,896,929,552,995,975,1059,1162,1933,1886,1404,593]} 1. e4 {[%emt 0:00:02]} c5 {[%emt 0:00:02]} 2. Nf3 {[%emt 0:00:03]} g6 {[%emt 0:00:02]} 3. c3 {[%emt 0:00:03]} Bg7 {[%emt 0:00:04]} 4. d4 {[%emt 0:00:01]} cxd4 {[%emt 0:00:02]} 5. cxd4 {[%emt 0:00:02]} d5 {[%emt 0:00:03]} 6. e5 {[%emt 0:00:01]} Bg4 {[%emt 0:00:04]} 7. Nbd2 {[%emt 0:00:22]} Nc6 {[%emt 0:00:09] B27: Sicilian: 2 Nf3, unusual Black 2nd moves.} 8. h3 {[%emt 0:00:04]} Bf5 {[%emt 0:00:55]} (8... Bxf3 $5 9. Nxf3 f6 $11) 9. Bb5 {[%emt 0:01:44]} Qb6 {[%emt 0:01:32] White has an edge.} 10. Qa4 {[%emt 0:00:05] [#]} a6 $146 {[%emt 0:00:44]} (10... Bd7 $11) ({Predecessor:} 10... Bd7 11. Nb3 Nxe5 12. Bxd7+ Nxd7 13. Ne5 Bxe5 14. dxe5 e6 15. Be3 Qc6 16. Qb4 Qa6 {1-0 (52) Gholami,A (2426)-Molaei,M (2253) Teheran 2017}) 11. Bxc6+ $16 {[%emt 0:00:41]} Qxc6 {[%emt 0:00:02]} 12. Qxc6+ {[%emt 0:00:09]} bxc6 {[%emt 0:00:03]} 13. Nb3 {[%emt 0:00:29]} Be4 {[%emt 0:00:44]} 14. Ke2 {[%emt 0:00:27]} f6 {[%emt 0:00:11]} 15. Bf4 {[%emt 0:00:12]} Nh6 {[%emt 0:01:10]} 16. Rhc1 {[%emt 0:00:40]} Rc8 {[%emt 0:00:40]} (16... fxe5 $11 17. Bxe5 (17. Nxe5 Bxg2 18. Rg1 Be4 $11) 17... Bxf3+ 18. Kxf3 (18. gxf3 Bxe5 19. dxe5 Kd7 $11) 18... Bxe5 19. dxe5 Nf7) 17. Nc5 {[%emt 0:01:28]} (17. e6 $16) 17... Bxf3+ $11 {[%emt 0:00:15]} 18. Kxf3 {[%emt 0:00:05]} fxe5 {[%emt 0:00:07]} 19. Bxe5 {[%emt 0:00:04]} O-O+ {[%emt 0:00:35]} 20. Ke2 {[%emt 0:00:01] Black must now prevent Bxg7.} Nf5 {[%emt 0:00:44]} 21. Ne6 {[%emt 0:00:33] Hoping for g4.} Bxe5 {[%emt 0:00:08]} 22. dxe5 {[%emt 0:00:03] aiming for g4.} Rfe8 {[%emt 0:01:52]} 23. Rc5 {[%emt 0:00:05]} Kf7 {[%emt 0:01:09]} (23... Ng7 $16 24. Nxg7 Kxg7) 24. Ng5+ $18 {[%emt 0:00:01]} Kg7 {[%emt 0:00:02]} 25. Rac1 {[%emt 0:00:03]} Rb8 {[%emt 0:00:03]} 26. b3 {[%emt 0:00:12]} Rb5 {[%emt 0:00:06]} (26... a5 $142 27. Rxa5 Ra8) 27. Ne6+ {[%emt 0:00:13]} Kf7 {[%emt 0:01:14]} 28. Rxc6 {[%emt 0:00:02]} d4 {[%emt 0:00:19]} 29. f4 {[%emt 0:00:33]} Ra5 {[%emt 0:00:02]} 30. R1c2 {[%emt 0:00:06]} Ne3 {[%emt 0:00:27]} 31. Rd2 {[%emt 0:00:16]} (31. Nxd4 Nxc2 32. Rxc2 Rd8 $11) 31... Nxg2 {[%emt 0:00:02]} 32. Ng5+ {[%emt 0:01:23]} (32. Rxd4 Rxa2+ 33. Rd2 Rxd2+ 34. Kxd2 Rb8 $11) 32... Kg8 {[%emt 0:00:23]} 33. Kf3 {[%emt 0:00:26]} (33. Rxd4 Rxa2+ 34. Kd1 a5 $11) 33... Nh4+ {[%emt 0:00:11]} 34. Ke4 {[%emt 0:00:01]} Nf5 {[%emt 0:01:04] [#]} (34... Rb8 $16 35. Rdc2 (35. Kxd4 h6 $17) (35. Rxd4 Rxa2 36. Rd3 Nf5 $11) 35... d3 36. Kxd3 Nf5) 35. Ne6 {[%emt 0:00:12] Active counter play!} (35. a4 $1 $18) 35... Kf7 {[%emt 0:00:47]} (35... Rb8 $16 {is a better defense.} 36. Rc4 (36. Nxd4 Nxd4 37. Rxd4 Rxa2 $11) 36... d3 37. Kxd3 Kf7) 36. a4 {[%emt 0:00:30]} (36. Nxd4 Rd8 $14) (36. Nc5 $18 {is more deadly.}) 36... Rb8 {[%emt 0:00:41]} (36... Nd6+ $16 37. exd6 exd6) 37. Rd3 {[%emt 0:00:25]} (37. Nxd4 Nxd4 38. Rxd4 (38. Kxd4 Rxb3 39. Ra2 Rxh3 $17) 38... Rxb3 $11) 37... Rb4 {[%emt 0:00:01]} (37... Nd6+ {keeps fighting.} 38. exd6 Kxe6) 38. Nc7 {[%emt 0:01:07]} ({Inferior is} 38. Nxd4 Nxd4 39. Rxd4 Rxb3 $11) 38... Rb7 {[%emt 0:01:07]} 39. Nxa6 {[%emt 0:00:20]} ({Don't take} 39. Rxa6 $6 Rc5 40. Ne6 Rc8 $18) 39... Ng7 $2 {[%emt 0:00:19] [#]} (39... Ke8 {was worth a try.} 40. Nc5 Rb4) 40. Nc5 {[%emt 0:00:10] White is clearly winning.} Rb8 {[%emt 0:00:08]} 41. e6+ {[%emt 0:00:22]} Ke8 {[%emt 0:00:11]} 42. b4 {[%emt 0:00:14][%cal Bb3b4,Bb4b5,Bb5b6][%mdl 32]} Raa8 {[%emt 0:00:03]} 43. b5 {[%emt 0:00:10]} Nf5 {[%emt 0:00:01]} 44. b6 {[%emt 0:00:09]} Nd6+ {[%emt 0:00:01]} 45. Kd5 {[%emt 0:00:06]} Ra5 {[%emt 0:00:04]} 46. Kxd4 {[%emt 0:01:05]} Rd8 {[%emt 0:00:03]} 47. Ke3 {[%emt 0:00:58]} Nc4+ {[%emt 0:00:06]} 48. Ke2 {[%emt 0:00:12]} Rxd3 {[%emt 0:00:17]} 49. Nxd3 {[%emt 0:00:04] Weighted Error Value: White=0.27 (precise) /Black=0.41} (49. Kxd3 $142 {[%cal Rc6c8]} Nxb6 50. Rxb6) 1-0

[Event "European Corporate Championship 2022"]
[Site "Rotterdam"]
[Date "2022.06.18"]
[Round "4.5"]
[White "Haast, Mark"]
[Black "Barski, Radoslaw"]
[Result "0-1"]
[ECO "A14"]
[WhiteElo "2414"]
[BlackElo "2434"]
[Annotator "TA"]
[PlyCount "78"]
[EventDate "2022.06.18"]
[EventType "team-tourn"]
[EventCountry "NED"]
[SourceTitle "playchess.com"]
[Source "ChessBase"]
[SourceQuality "1"]
[TimeControl "900+5"]

{[%evp 21,77,0,12,6,6,0,44,45,38,23,35,35,41,-58,-17,-56,-26,-62,-26,-41,-30,-88,-79,-85,0,0,67,-27,-8,-17,0,0,68,-102,-9,-25,143,155,164,166,151,116,189,159,233,222,211,231,226,-214,-176,-475,-461,-1964,-1919,-29991,-29992,-29999]} 1. c4 {[%emt 0:00:02]} Nf6 {[%emt 0:00:03]} 2. g3 {[%emt 0:00:01]} e6 {[%emt 0:00:06]} 3. Bg2 {[%emt 0:00:01]} d5 {[%emt 0:00:01]} 4. Nf3 {[%emt 0:00:02]} Be7 {[%emt 0:00:11]} 5. O-O {[%emt 0:00:03]} O-O {[%emt 0:00:02]} 6. b3 {[%emt 0:00:09]} c5 {[%emt 0:00:06]} 7. e3 {[%emt 0:00:09]} b6 {[%emt 0:00:04]} 8. Bb2 {[%emt 0:00:20]} Bb7 {[%emt 0:00:02]} 9. Nc3 {[%emt 0:00:06]} dxc4 {[%emt 0:00:02]} 10. bxc4 {[%emt 0:00:01]} Nc6 {[%emt 0:00:05]} 11. Qe2 {[%emt 0:00:37]} Rc8 {[%emt 0:00:01]} 12. d3 {[%emt 0:00:49] A14: English Opening: 1...e6 with b3 by White.} Rc7 {[%emt 0:00:02]} 13. Ne1 {[%emt 0:13:50]} Qa8 {[%emt 0:00:14]} 14. f4 {[%emt 0:00:00] White is slightly better.} Rd7 {[%emt 0:00:06] [#]} 15. g4 $146 {[%emt 0:00:00][%cal Bg3g4,Bg4g5][%mdl 32]} ({Predecessor:} 15. f5 exf5 16. Rxf5 Bd8 17. Nc2 Ne8 18. Raf1 Ne7 19. Bxb7 Qxb7 20. R5f2 Ng6 21. e4 {1-0 (30) Flores,D (2609)-Henriquez Villagra,C (2488) Antofagasta 2019}) 15... Rfd8 {[%emt 0:00:01]} 16. g5 {[%emt 0:00:00] f5 is the strong threat.} Ne8 {[%emt 0:00:01]} 17. f5 {[%emt 0:00:00]} (17. Rd1 $14) 17... exf5 {[%emt 0:02:07]} 18. Nd5 {[%emt 0:00:00]} g6 {[%emt 0:00:23]} 19. h4 {[%emt 0:00:00]} Nb4 {[%emt 0:01:06][%cal Rb4d5]} 20. e4 {[%emt 0:00:00]} Nxd5 {[%emt 0:00:46]} 21. cxd5 {[%emt 0:00:00] [#]} (21. exd5 $11 {remains equal.} Bf8 22. Nf3 (22. Qe5 Bg7 $15)) 21... Bf8 $1 $17 {[%emt 0:00:12]} 22. Nc2 {[%emt 0:00:00]} Re7 {[%emt 0:00:28]} (22... Qb8 $17) 23. Ne3 $11 {[%emt 0:00:00]} Bg7 {[%emt 0:00:55] [#]} (23... Qb8 $11) 24. Bxg7 {[%emt 0:00:00]} (24. Rxf5 $1 $14 gxf5 25. Nxf5) 24... Nxg7 {[%emt 0:00:01]} 25. Qf2 {[%emt 0:00:00]} Qb8 {[%emt 0:02:44]} 26. Rae1 $1 {[%emt 0:00:00]} (26. exf5 Nxf5 27. Ng4 (27. Nxf5 gxf5 28. Qxf5 Qg3 $17) 27... Kf8 $17) 26... Bc8 {[%emt 0:00:28]} (26... Ba6 $11 27. exf5 Bxd3 28. fxg6 (28. f6 Rxe3 29. Qxe3 Bxf1 $17) 28... hxg6) 27. Nc4 $2 {[%emt 0:00:00]} (27. exf5 $14 Rxe3 28. Qxe3 Nxf5 29. Qf4 Qxf4 30. Rxf4) 27... Bd7 {[%emt 0:00:38]} (27... Ba6 $17 {next ...Bxc4 is good for Black.} 28. d6 Ree8) 28. e5 {[%emt 0:00:00]} b5 $2 {[%emt 0:01:15]} ({Black should play} 28... Bb5 $11 29. Qb2 Ba6) 29. Qxc5 $16 {[%emt 0:00:00]} Ree8 {[%emt 0:00:23]} 30. Nd6 {[%emt 0:00:00]} Rf8 {[%emt 0:00:02]} 31. Rb1 {[%emt 0:00:00]} a6 {[%emt 0:00:04]} (31... Ne8 $16) 32. a4 {[%emt 0:00:00]} f4 {[%emt 0:00:40]} (32... Ne8 $16) 33. Rxf4 {[%emt 0:00:00]} Nf5 {[%emt 0:00:00]} 34. Nxf5 {[%emt 0:00:39]} (34. axb5 $6 Nxd6 35. exd6 (35. Qxd6 Qxd6 36. exd6 Bxb5 $16) 35... axb5 $14) 34... Bxf5 {[%emt 0:00:02]} 35. Rd4 $4 {[%emt 0:00:03][%mdl 8192]} ({Much less strong is} 35. axb5 $6 Bxd3 36. Re1 Qxb5 37. Qxb5 axb5 $16) (35. Qd4 $18) 35... Qxe5 $19 {[%emt 0:00:04]} 36. axb5 $2 {[%emt 0:00:13]} (36. Rdb4) 36... Rc8 {[%emt 0:00:40]} 37. Qb6 {[%emt 0:00:01]} (37. Re4 $142 Bxe4 38. Qe3) 37... Qe3+ {[%emt 0:01:45]} 38. Kh2 {[%emt 0:00:17]} Rc2 {[%emt 0:00:06]} 39. Rg1 {[%emt 0:00:19]} Qh3# {[%emt 0:00:08] Weighted Error Value: White=0.99/Black=0.36} 0-1